fUSD/lending_fUSD_20241207
["ID","MTS","AMOUNT","RATE_DAILY","PERIOD"]
[344525024,1733536238414,-469.69353535,0.00010407,2]
[344525026,1733536238423,-1443.28,0.00010407,2]
[344525028,1733536238432,-500.0,0.00010407,2]
[344525030,1733536238442,-509.51,0.00010407,2]
[344525032,1733536238451,-1435.98,0.00010407,2]
[344525034,1733536238461,-1025.19,0.00010407,2]
[344525036,1733536238470,-509.75011312,0.00010407,2]
[344525038,1733536238480,-500.0,0.00010407,2]
[344525040,1733536238489,-500.0,0.00010407,2]
[344525042,1733536238498,-747.69,0.00010407,2]
[344525044,1733536238507,-500.0,0.00010407,2]
[344525046,1733536238517,-274.17218794,0.00010407,2]
[344525048,1733536238526,-500.0,0.00010407,2]
[344525050,1733536238535,-500.0,0.00010407,2]
[344525052,1733536238544,-2814.44,0.00010407,2]
[344525054,1733536238554,-7132.51,0.00010407,2]
[344525056,1733536238564,-500.0,0.00010407,2]
[344525058,1733536238574,-500.0,0.00010407,2]
[344525060,1733536238583,-500.0,0.00010407,2]
[344525062,1733536238592,-2554.24,0.00010407,2]
[344525064,1733536238601,-500.0,0.00010407,2]
[344525066,1733536238610,-862.89,0.00010407,2]
[344525068,1733536238620,-1419.95,0.00010407,2]
[344525070,1733536238629,-500.0,0.00010407,2]
[344525072,1733536238638,-824.51,0.00010407,2]
[344525074,1733536238647,-901.61,0.00010407,2]
[344525076,1733536238656,-1511.62,0.00010407,2]
[344525078,1733536238665,-500.0,0.00010407,2]
[344525080,1733536238674,-2377.17,0.00010407,2]
[344525082,1733536238683,-8848.27,0.00010407,2]
[344525084,1733536238694,-502.58572065,0.00010407,2]
[344525086,1733536238703,-2208.06,0.00010407,2]
[344525088,1733536238712,-712.8,0.00010407,2]
[344525090,1733536238724,-500.0,0.00010407,2]
[344525092,1733536238733,-4591.69,0.00010407,2]
[344525094,1733536238742,-2710.3,0.00010407,2]
[344525096,1733536238751,-500.0,0.00010407,2]
[344525098,1733536238760,-500.0,0.00010407,2]
[344525100,1733536238769,-676.57,0.00010407,2]
[344525102,1733536238778,-1680.28,0.00010407,2]
[344525104,1733536238788,-500.0,0.00010407,2]
[344525106,1733536238797,-500.0,0.00010407,2]
[344525108,1733536238806,-1432.11,0.00010407,2]
[344525111,1733536238818,-500.0,0.00010407,2]
[344525112,1733536238827,-4646.7,0.00010407,2]
[344525114,1733536238836,-500.0,0.00010407,2]
[344525116,1733536238845,-15013.49,0.00010407,2]
[344525118,1733536238854,-564.83,0.00010407,2]
[344525120,1733536238863,-4871.52,0.00010407,2]
[344525122,1733536238872,-772.76,0.00010407,2]
[344525124,1733536238881,-500.0,0.00010407,2]
[344525126,1733536238890,-150.348126,0.00010407,2]
[344525128,1733536238900,-815.03,0.00010407,2]
[344525130,1733536238909,-2380.55,0.00010407,2]
[344525132,1733536238918,-1815.68,0.00010407,2]
[344525134,1733536238927,-500.0,0.00010407,2]
[344525136,1733536238936,-500.0,0.00010407,2]
[344525138,1733536238945,-2128.7,0.00010407,2]
[344525140,1733536238954,-1530.78,0.00010407,2]
[344525142,1733536238964,-500.0,0.00010407,2]
[344525144,1733536238973,-7897.92639037,0.00010407,2]
[344525146,1733536238987,-9067.07360963,0.00010407,2]
[344525148,1733536238998,-1604.96,0.00010407,2]
[344525150,1733536239007,-500.24334568,0.00010407,2]
[344525152,1733536239016,-500.0,0.00010407,2]
[344525154,1733536239025,-511.92945412,0.00010407,2]
[344525156,1733536239034,-500.0,0.00010407,2]
[344525158,1733536239044,-500.0,0.00010407,2]
[344525160,1733536239053,-619.51,0.00010407,2]
[344525162,1733536239070,-500.0,0.00010407,2]
[344525164,1733536239080,-1502.86,0.00010407,2]
[344525167,1733536239089,-7902.9,0.00010407,2]
[344525168,1733536239098,-500.0,0.00010407,2]
[344525170,1733536239107,-500.0,0.00010407,2]
[344525172,1733536239116,-1008.12,0.00010407,2]
[344525175,1733536239126,-502.28,0.00010407,2]
[344525176,1733536239135,-500.0,0.00010407,2]
[344525178,1733536239144,-500.0,0.00010407,2]
[344525180,1733536239153,-979.79,0.00010407,2]
[344525182,1733536239162,-944.37,0.00010407,2]
[344525184,1733536239171,-653.04,0.00010407,2]
[344525186,1733536239181,-501.8566126,0.00010407,2]
[344525188,1733536239190,-25.06698997,0.00010407,2]
[344525190,1733536239201,-474.93301003,0.00010407,2]
[344525192,1733536239210,-1333.83,0.00010407,2]
[344525194,1733536239219,-500.0,0.00010407,2]
[344525196,1733536239229,-500.0,0.00010407,2]
[344525198,1733536239238,-500.0,0.00010407,2]
[344525200,1733536239247,-707.74,0.00010407,2]
[344525202,1733536239257,-500.0,0.00010407,2]
[344525204,1733536239266,-500.0,0.00010407,2]
[344525206,1733536239276,-500.0,0.00010407,2]
[344525208,1733536239285,-500.0,0.00010407,2]
[344525210,1733536239294,-1395.45,0.00010407,2]
[344525212,1733536239303,-1391.91,0.00010407,2]
[344525214,1733536239317,-500.0,0.00010407,2]
[344525216,1733536239333,-500.0,0.00010407,2]
[344525218,1733536239342,-500.0,0.00010407,2]
[344525220,1733536239351,-947.41,0.00010407,2]
[344525222,1733536239360,-255.86774245,0.00010407,2]
[344525224,1733536239371,-244.13225755,0.00010407,2]
[344525226,1733536239380,-500.0,0.00010407,2]
[344525228,1733536239390,-1361.4,0.00010407,2]
[344525230,1733536239399,-500.0,0.00010407,2]
[344525232,1733536239408,-2140.86,0.00010407,2]
[344525234,1733536239418,-500.0,0.00010407,2]
[344525236,1733536239427,-1620.87,0.00010407,2]
[344525238,1733536239437,-500.0,0.00010407,2]
[344525240,1733536239446,-500.0,0.00010407,2]
[344525242,1733536239455,-500.0,0.00010407,2]
[344525244,1733536239465,-502.78682824,0.00010408,2]
[344525247,1733536239474,-503.38820082,0.00010408,2]
[344525249,1733536239483,-502.85166605,0.00010408,2]
[344525250,1733536239492,-500.0,0.00010408,2]
[344525252,1733536239502,-500.0,0.00010408,2]
[344525254,1733536239511,-500.0,0.00010408,2]
[344525255,1733536239520,-557.33522881,0.00010408,2]
[344525256,1733536239529,-500.0,0.00010408,2]
[344525257,1733536239538,-500.0,0.00010408,2]
[344525258,1733536239547,-500.0,0.00010408,2]
[344525259,1733536239556,-500.0,0.00010408,2]
[344525260,1733536239568,-500.0,0.00010408,2]
[344525261,1733536239577,-500.0,0.00010408,2]
[344525262,1733536239586,-502.58599811,0.00010408,2]
[344525263,1733536239595,-500.0,0.00010408,2]
[344525265,1733536239604,-1973.59,0.00010408,2]
[344525267,1733536239613,-806.7,0.00010408,2]
[344525269,1733536239623,-919.96,0.00010408,2]
[344525271,1733536239632,-500.0,0.00010408,2]
[344525273,1733536239641,-2028.99,0.00010408,2]
[344525275,1733536239650,-500.0,0.00010408,2]
[344525277,1733536239660,-1957.15,0.00010408,2]
[344525279,1733536239669,-500.0,0.00010408,2]
[344525281,1733536239678,-500.0,0.00010408,2]
[344525285,1733536239689,-1074.67,0.00010408,2]
[344525288,1733536239699,-500.0,0.00010408,2]
[344525290,1733536239709,-500.0,0.00010408,2]
[344525292,1733536239719,-1596.59,0.00010408,2]
[344525294,1733536239728,-500.0,0.00010408,2]
[344525296,1733536239738,-500.0,0.00010408,2]
[344525298,1733536239747,-500.0,0.00010408,2]
[344525300,1733536239758,-534.65,0.00010408,2]
[344525302,1733536239767,-500.0,0.00010408,2]
[344525304,1733536239776,-500.0,0.00010408,2]
[344525306,1733536239785,-500.0,0.00010408,2]
[344525308,1733536239795,-1462.96,0.00010408,2]
[344525310,1733536239804,-500.0,0.00010408,2]
[344525312,1733536239816,-500.0,0.00010408,2]
[344525314,1733536239825,-1361.04,0.00010408,2]
[344525316,1733536239835,-500.0,0.00010408,2]
[344525318,1733536239844,-500.0,0.00010408,2]
[344525320,1733536239853,-500.0,0.00010408,2]
[344525322,1733536239862,-500.0,0.00010408,2]
[344525324,1733536239872,-500.0,0.00010408,2]
[344525326,1733536239881,-500.0,0.00010408,2]
[344525328,1733536239890,-500.0,0.00010408,2]
[344525330,1733536239899,-854.27,0.00010408,2]
[344525332,1733536239908,-500.0,0.00010408,2]
[344525334,1733536239918,-500.0,0.00010408,2]
[344525336,1733536239927,-500.0,0.00010408,2]
[344525338,1733536239936,-952.41,0.00010408,2]
[344525340,1733536239945,-500.0,0.00010408,2]
[344525342,1733536239955,-500.0,0.00010408,2]
[344525344,1733536239964,-500.0,0.00010408,2]
[344525346,1733536239975,-500.0,0.00010408,2]
[344525348,1733536239985,-1923.16,0.00010408,2]
[344525350,1733536239997,-1220.83,0.00010408,2]
[344525352,1733536240007,-500.0,0.00010408,2]
[344525354,1733536240017,-500.0,0.00010408,2]
[344525356,1733536240027,-1173.25,0.00010408,2]
[344525358,1733536240037,-500.0,0.00010408,2]
[344525360,1733536240046,-500.0,0.00010408,2]
[344525362,1733536240055,-500.0,0.00010408,2]
[344525364,1733536240066,-500.0,0.00010408,2]
[344525366,1733536240076,-500.0,0.00010408,2]
[344525368,1733536240085,-1427.49,0.00010408,2]
[344525370,1733536240095,-500.0,0.00010408,2]
[344525406,1733536240416,-1132.29,0.00010408,2]
[344525408,1733536240428,-500.0,0.00010408,2]
[344525410,1733536240437,-1988.24,0.00010408,2]
[344525412,1733536240447,-500.0,0.00010408,2]
[344525414,1733536240456,-2268.55,0.00010408,2]
[344525416,1733536240465,-500.0,0.00010408,2]
[344525418,1733536240475,-500.0,0.00010408,2]
[344525420,1733536240484,-500.0,0.00010408,2]
[344525422,1733536240493,-1649.72,0.00010408,2]
[344525424,1733536240503,-308.67940795,0.00010408,2]
[344525426,1733536240512,-500.0,0.00010408,2]
[344525428,1733536240521,-1204.84,0.00010408,2]
[344525430,1733536240531,-318.06476053,0.00010408,2]
[344525432,1733536240540,-500.0,0.00010408,2]
[344525434,1733536240549,-1419.07,0.00010408,2]
[344525436,1733536240559,-672.22,0.00010408,2]
[344525438,1733536240569,-500.0,0.00010408,2]
[344525440,1733536240578,-500.0,0.00010408,2]
[344525442,1733536240587,-500.0,0.00010408,2]
[344525444,1733536240597,-1429.7,0.00010408,2]
[344525446,1733536240606,-500.0,0.00010408,2]
[344525448,1733536240616,-1164.95,0.00010408,2]
[344525450,1733536240625,-500.0,0.00010408,2]
[344525452,1733536240634,-1139.75,0.00010408,2]
[344525454,1733536240644,-500.0,0.00010408,2]
[344525456,1733536240653,-372.14682847,0.00010408,2]
[344525458,1733536240662,-500.0,0.00010408,2]
[344525460,1733536240671,-500.0,0.00010408,2]
[344525462,1733536240681,-500.0,0.00010408,2]
[344525464,1733536240690,-500.0,0.00010408,2]
[344525466,1733536240699,-788.76,0.00010408,2]
[344525468,1733536240708,-874.05,0.00010408,2]
[344525470,1733536240718,-500.0,0.00010408,2]
[344525472,1733536240727,-500.0,0.00010408,2]
[344525474,1733536240737,-170.48138417,0.00010408,2]
[344525476,1733536240746,-500.0,0.00010408,2]
[344525478,1733536240755,-500.0,0.00010408,2]
[344525480,1733536240765,-500.0,0.00010408,2]
[344525482,1733536240774,-2270.59,0.00010408,2]
[344525484,1733536240784,-500.0,0.00010408,2]
[344525486,1733536240794,-821.23,0.00010408,2]
[344525488,1733536240803,-2289.09,0.00010408,2]
[344525490,1733536240816,-500.0,0.00010408,2]
[344525491,1733536240825,-1579.83,0.00010408,2]
[344525493,1733536240835,-500.0,0.00010408,2]
[344525495,1733536240844,-500.0,0.00010408,2]
[344525497,1733536240854,-500.0,0.00010408,2]
[344525499,1733536240863,-500.0,0.00010408,2]
[344525501,1733536240873,-1809.76,0.00010408,2]
[344525503,1733536240883,-500.0,0.00010408,2]
[344525505,1733536240892,-693.82,0.00010408,2]
[344525507,1733536240901,-1496.96,0.00010408,2]
[344525509,1733536240911,-500.0,0.00010408,2]
[344525511,1733536240920,-1337.46,0.00010408,2]
[344525513,1733536240930,-1067.55,0.00010408,2]
[344525515,1733536240939,-500.0,0.00010408,2]
[344525517,1733536240949,-3610.04,0.00010408,2]
[344525519,1733536240958,-500.0,0.00010408,2]
[344525521,1733536240968,-909.31,0.00010408,2]
[344525523,1733536240977,-500.0,0.00010408,2]
[344525525,1733536240989,-1107.11,0.00010408,2]
[344525527,1733536240999,-1306.23,0.00010408,2]
[344525529,1733536241008,-500.0,0.00010408,2]
[344525531,1733536241018,-500.0,0.00010408,2]
[344525533,1733536241027,-4172.15,0.00010408,2]
[344525535,1733536241037,-500.0,0.00010408,2]
[344525537,1733536241046,-3682.15,0.00010408,2]
[344525539,1733536241055,-500.0,0.00010408,2]
[344525541,1733536241066,-500.0,0.00010408,2]
[344525543,1733536241076,-2451.74,0.00010408,2]
[344525545,1733536241085,-500.0,0.00010408,2]
[344525547,1733536241095,-1388.88,0.00010408,2]
[344525549,1733536241104,-1134.26,0.00010408,2]
[344525551,1733536241114,-500.0,0.00010408,2]
[344525553,1733536241123,-500.0,0.00010408,2]
[344525555,1733536241133,-500.0,0.00010408,2]
[344525557,1733536241142,-807.12,0.00010408,2]
[344525559,1733536241151,-873.88,0.00010408,2]
[344525561,1733536241160,-500.0,0.00010408,2]
[344525563,1733536241170,-12615.43,0.00010408,2]
[344525565,1733536241179,-531.19,0.00010408,2]
[344525567,1733536241188,-1534.76,0.00010408,2]
[344525569,1733536241197,-1375.96,0.00010408,2]
[344525571,1733536241207,-500.0,0.00010408,2]
[344525573,1733536241216,-3418.5,0.00010408,2]
[344525575,1733536241225,-3762.16,0.00010408,2]
[344525577,1733536241234,-500.0,0.00010408,2]
[344525579,1733536241244,-1672.75,0.00010408,2]
[344525581,1733536241253,-1386.08,0.00010408,2]
[344525582,1733536241262,-500.0,0.00010408,2]
[344525583,1733536241271,-5487.01,0.00010408,2]
[344525584,1733536241280,-500.0,0.00010408,2]
[344525585,1733536241290,-1319.83,0.00010408,2]
[344525586,1733536241299,-1615.88,0.00010408,2]
[344525587,1733536241308,-500.0,0.00010408,2]
[344525588,1733536241318,-3508.25,0.00010408,2]
[344525589,1733536241328,-1212.79,0.00010408,2]
[344525590,1733536241337,-500.0,0.00010408,2]
[344525591,1733536241346,-3134.44,0.00010408,2]
[344525592,1733536241356,-500.0,0.00010408,2]
[344525593,1733536241365,-1417.37,0.00010408,2]
[344525594,1733536241374,-2607.01,0.00010408,2]
[344525595,1733536241384,-500.0,0.00010408,2]
[344525596,1733536241393,-2314.85,0.00010408,2]
[344525597,1733536241402,-500.0,0.00010408,2]
[344525598,1733536241411,-1066.22,0.00010408,2]
[344525599,1733536241421,-500.0,0.00010408,2]
[344525600,1733536241430,-500.25045595,0.00010408,2]
[344525601,1733536241439,-1855.42,0.00010408,2]
[344525602,1733536241449,-500.05090344,0.00010408,2]
[344525603,1733536241460,-3863.17,0.00010408,2]
[344525604,1733536241471,-2316.43,0.00010408,2]
[344525605,1733536241480,-500.0,0.00010408,2]
[344525606,1733536241490,-1758.84,0.00010408,2]
[344525607,1733536241499,-500.0,0.00010408,2]
[344525608,1733536241509,-500.0,0.00010408,2]
[344525609,1733536241518,-500.0,0.00010408,2]
[344525610,1733536241528,-513.82,0.00010408,2]
[344525611,1733536241538,-500.0,0.00010408,2]
[344525612,1733536241547,-500.0,0.00010408,2]
[344525613,1733536241556,-378.03521955,0.00010408,2]
[344525614,1733536241566,-904.08,0.00010408,2]
[344525615,1733536241576,-500.0,0.00010408,2]
[344525616,1733536241586,-500.0,0.00010408,2]
[344525617,1733536241595,-2971.06,0.00010408,2]
[344525618,1733536241605,-500.0,0.00010408,2]
[344525619,1733536241615,-500.0,0.00010408,2]
[344525620,1733536241625,-607.67,0.00010408,2]
[344525621,1733536241635,-908.45,0.00010408,2]
[344525622,1733536241645,-500.0,0.00010408,2]
[344525623,1733536241654,-160.96063683,0.00010408,2]
[344525624,1733536241664,-2730.04,0.00010408,2]
[344525625,1733536241673,-601.7,0.00010408,2]
[344525626,1733536241683,-500.0,0.00010408,2]
[344525627,1733536241692,-500.0,0.00010408,2]
[344525628,1733536241702,-1655.05,0.00010408,2]
[344525629,1733536241711,-1390.17,0.00010408,2]
[344525630,1733536241720,-1410.09,0.00010408,2]
[344525631,1733536241729,-1232.19,0.00010408,2]
[344525632,1733536241739,-668.26,0.00010408,2]
[344525633,1733536241748,-1273.21,0.00010408,2]
[344525634,1733536241758,-500.51192524,0.00010408,2]
[344525635,1733536241767,-500.0,0.00010408,2]
[344525636,1733536241776,-500.0,0.00010408,2]
[344525637,1733536241785,-3636.84,0.00010408,2]
[344525638,1733536241794,-2436.97,0.00010408,2]
[344525639,1733536241803,-500.0,0.00010409,2]
[344525640,1733536241815,-500.0,0.00010409,2]
[344525641,1733536241824,-728.45,0.00010409,2]
[344525642,1733536241834,-500.0,0.00010409,2]
[344525643,1733536241843,-500.0,0.00010409,2]
[344525644,1733536241852,-500.0,0.00010409,2]
[344525645,1733536241861,-500.0,0.00010409,2]
[344525646,1733536241870,-500.0,0.00010409,2]
[344525647,1733536241879,-500.0,0.00010409,2]
[344525648,1733536241889,-500.0,0.00010409,2]
[344525649,1733536241898,-500.0,0.00010409,2]
[344525650,1733536241909,-500.0,0.00010409,2]
[344525651,1733536241920,-500.0,0.00010409,2]
[344525652,1733536241930,-1010.16,0.00010409,2]
[344525653,1733536241942,-500.0,0.00010409,2]
[344525654,1733536241951,-500.0,0.00010409,2]
[344525655,1733536241962,-500.0,0.00010409,2]
[344525656,1733536241972,-500.0,0.00010409,2]
[344525657,1733536241982,-500.0,0.00010409,2]
[344525658,1733536241999,-500.0,0.00010409,2]
[344525659,1733536242009,-500.0,0.00010409,2]
[344525660,1733536242018,-605.55,0.00010409,2]
[344525661,1733536242028,-500.0,0.00010409,2]
[344525662,1733536242037,-500.0,0.00010409,2]
[344525663,1733536242047,-500.0,0.00010409,2]
[344525664,1733536242056,-500.0,0.00010409,2]
[344525665,1733536242065,-500.0,0.00010409,2]
[344525666,1733536242074,-500.0,0.00010409,2]
[344525667,1733536242084,-500.0,0.00010409,2]
[344525668,1733536242094,-500.0,0.00010409,2]
[344525669,1733536242103,-500.0,0.00010409,2]
[344525670,1733536242112,-500.0,0.00010409,2]
[344525671,1733536242121,-185.80281288,0.00010409,2]
[344525672,1733536242130,-500.0,0.00010409,2]
[344525673,1733536242140,-500.0,0.00010409,2]
[344525674,1733536242149,-500.0,0.00010409,2]
[344525675,1733536242159,-500.0,0.00010409,2]
[344525676,1733536242170,-500.0,0.00010409,2]
[344525677,1733536242179,-500.0,0.00010409,2]
[344525678,1733536242188,-500.0,0.00010409,2]
[344525679,1733536242197,-500.0,0.00010409,2]
[344525680,1733536242207,-500.0,0.00010409,2]
[344525681,1733536242216,-500.0,0.00010409,2]
[344525682,1733536242226,-500.0,0.00010409,2]
[344525683,1733536242235,-500.0,0.00010409,2]
[344525684,1733536242244,-500.0,0.00010409,2]
[344525685,1733536242253,-509.39450518,0.00010409,2]
[344525686,1733536242264,-500.0,0.00010409,2]
[344525687,1733536242273,-1189.5,0.00010409,2]
[344525688,1733536242282,-392.20981621,0.00010409,2]
[344525689,1733536242291,-500.0,0.00010409,2]
[344525690,1733536242301,-500.0,0.00010409,2]
[344525691,1733536242311,-500.0,0.00010409,2]
[344525692,1733536242322,-691.44,0.00010409,2]
[344525693,1733536242331,-500.0,0.00010409,2]
[344525694,1733536242340,-593.21,0.00010409,2]
[344525695,1733536242350,-500.0,0.00010409,2]
[344525696,1733536242359,-500.0,0.00010409,2]
[344525697,1733536242370,-500.0,0.00010409,2]
[344525698,1733536242380,-500.0,0.00010409,2]
[344525699,1733536242389,-575.21,0.00010409,2]
[344525700,1733536242398,-760.02,0.00010409,2]
[344525701,1733536242407,-997.85,0.00010409,2]
[344525702,1733536242417,-500.0,0.00010409,2]
[344525703,1733536242426,-500.0,0.00010409,2]
[344525704,1733536242435,-569.15,0.00010409,2]
[344525705,1733536242444,-1576.42,0.00010409,2]
[344525706,1733536242454,-500.79594462,0.00010409,2]
[344525707,1733536242463,-968.36,0.00010409,2]
[344525708,1733536242472,-649.06,0.00010409,2]
[344525709,1733536242481,-1164.89,0.00010409,2]
[344525710,1733536242492,-500.0,0.00010409,2]
[344525711,1733536242501,-500.0,0.00010409,2]
[344525712,1733536242510,-500.0,0.00010409,2]
[344525713,1733536242519,-500.0,0.00010409,2]
[344525714,1733536242529,-500.0,0.00010409,2]
[344525715,1733536242539,-500.0,0.00010409,2]
[344525716,1733536242548,-1156.26,0.00010409,2]
[344525717,1733536242558,-500.0,0.00010409,2]
[344525718,1733536242568,-602.11,0.00010409,2]
[344525719,1733536242578,-500.0,0.00010409,2]
[344525720,1733536242587,-500.0,0.00010409,2]
[344525721,1733536242596,-500.0,0.00010409,2]
[344525722,1733536242606,-1076.61,0.00010409,2]
[344525723,1733536242615,-500.0,0.00010409,2]
[344525724,1733536242624,-973.36,0.00010409,2]
[344525725,1733536242634,-500.0,0.00010409,2]
[344525726,1733536242643,-500.0,0.00010409,2]
[344525727,1733536242653,-500.0,0.00010409,2]
[344525729,1733536242664,-700.55,0.00010409,2]
[344525730,1733536242674,-667.19,0.00010409,2]
[344525731,1733536242683,-500.0,0.00010409,2]
[344525733,1733536242693,-500.0,0.00010409,2]
[344525734,1733536242702,-920.45,0.00010409,2]
[344525735,1733536242712,-500.0,0.00010409,2]
[344525736,1733536242722,-500.0,0.00010409,2]
[344525737,1733536242731,-1231.3,0.00010409,2]
[344525738,1733536242740,-901.24,0.00010409,2]
[344525739,1733536242750,-2088.05,0.00010409,2]
[344525740,1733536242760,-600.34,0.00010409,2]
[344525741,1733536242771,-993.78,0.00010409,2]
[344525742,1733536242781,-1450.85,0.00010409,2]
[344525743,1733536242790,-573.52,0.00010409,2]
[344525744,1733536242800,-1382.36,0.00010409,2]
[344525745,1733536242810,-500.0,0.00010409,2]
[344525746,1733536242824,-516.23,0.00010409,2]
[344525747,1733536242833,-1010.6,0.00010409,2]
[344525748,1733536242843,-500.0,0.00010409,2]
[344525749,1733536242852,-1088.16,0.00010409,2]
[344525750,1733536242861,-500.0,0.00010409,2]
[344525751,1733536242871,-583.14,0.00010409,2]
[344525752,1733536242880,-500.0,0.00010409,2]
[344525753,1733536242890,-500.0,0.00010409,2]
[344525754,1733536242899,-1024.17,0.00010409,2]
[344525755,1733536242909,-627.88,0.00010409,2]
[344525756,1733536242919,-500.0,0.00010409,2]
[344525757,1733536242929,-500.0,0.00010409,2]
[344525758,1733536242938,-500.0,0.00010409,2]
[344525759,1733536242947,-1163.95,0.00010409,2]
[344525760,1733536242957,-500.0,0.00010409,2]
[344525761,1733536242966,-500.0,0.00010409,2]
[344525762,1733536242976,-1200.64,0.00010409,2]
[344525763,1733536242986,-500.0,0.00010409,2]
[344525764,1733536242999,-500.0,0.00010409,2]
[344525765,1733536243008,-758.44,0.00010409,2]
[344525766,1733536243018,-2130.51,0.00010409,2]
[344525767,1733536243028,-500.0,0.00010409,2]
[344525768,1733536243038,-639.62,0.00010409,2]
[344525769,1733536243048,-500.0,0.00010409,2]
[344525770,1733536243057,-500.0,0.00010409,2]
[344525771,1733536243067,-526.77277127,0.00010409,2]
[344525772,1733536243076,-501.88372846,0.00010409,2]
[344525773,1733536243086,-500.0,0.00010409,2]
[344525774,1733536243095,-500.0,0.00010409,2]
[344525775,1733536243104,-527.5738205,0.00010409,2]
[344525776,1733536243114,-541.83,0.00010409,2]
[344525777,1733536243123,-500.0,0.00010409,2]
[344525778,1733536243133,-501.60472109,0.00010409,2]
[344525779,1733536243144,-500.0,0.00010409,2]
[344525780,1733536243153,-735.14,0.00010409,2]
[344525781,1733536243163,-629.45023122,0.00010409,2]
[344525782,1733536243172,-500.0,0.00010409,2]
[344525783,1733536243182,-500.0,0.00010409,2]
[344525784,1733536243191,-198.91379579,0.00010409,2]
[344525785,1733536243200,-500.0,0.00010409,2]
[344525786,1733536243209,-500.0,0.00010409,2]
[344525787,1733536243219,-1954.45,0.00010409,2]
[344525788,1733536243228,-782.84,0.00010409,2]
[344525789,1733536243238,-500.0,0.00010409,2]
[344525790,1733536243250,-500.0,0.00010409,2]
[344525791,1733536243265,-433.06004565,0.00010409,2]
[344525792,1733536243278,-503.74,0.00010409,2]
[344525793,1733536243293,-2507.35,0.00010409,2]
[344525794,1733536243302,-500.0,0.00010409,2]
[344525795,1733536243312,-500.0,0.00010409,2]
[344525796,1733536243323,-500.0,0.00010409,2]
[344525797,1733536243332,-500.0,0.00010409,2]
[344525798,1733536243341,-500.0,0.00010409,2]
[344525799,1733536243351,-500.0,0.00010409,2]
[344525800,1733536243360,-500.0,0.00010409,2]
[344525801,1733536243369,-500.0,0.00010409,2]
[344525802,1733536243379,-380.59165874,0.00010409,2]
[344525803,1733536243388,-1670.54,0.00010409,2]
[344525804,1733536243398,-500.0,0.00010409,2]
[344525805,1733536243407,-615.22905383,0.00010409,2]
[344525806,1733536243416,-500.0,0.00010409,2]
[344525807,1733536243425,-3627.1,0.00010409,2]
[344525808,1733536243435,-500.0,0.00010409,2]
[344525809,1733536243444,-500.0,0.00010409,2]
[344525810,1733536243453,-500.0,0.00010409,2]
[344525811,1733536243463,-637.28,0.00010409,2]
[344525812,1733536243472,-607.34911411,0.00010409,2]
[344525813,1733536243481,-2426.48,0.00010409,2]
[344525814,1733536243491,-500.0,0.00010409,2]
[344525815,1733536243501,-835.68,0.00010409,2]
[344525816,1733536243512,-500.0,0.00010409,2]
[344525817,1733536243522,-500.9438975,0.00010409,2]